fUSD/lending_fUSD_20240115
["ID","MTS","AMOUNT","RATE_DAILY","PERIOD"]
[311715323,1705349467021,-785.44,0.0003315,4]
[311715324,1705349467030,-500.0,0.0003315,4]
[311715325,1705349467040,-500.0,0.0003315,4]
[311715326,1705349467050,-500.0,0.0003315,4]
[311715327,1705349467059,-500.0,0.0003315,4]
[311715328,1705349467068,-539.96613575,0.0003315,4]
[311715329,1705349467078,-500.0,0.0003315,4]
[311715330,1705349467087,-500.0,0.0003315,4]
[311715331,1705349467097,-500.0,0.0003315,4]
[311715332,1705349467106,-1027.66,0.0003315,4]
[311715333,1705349467116,-1303.36,0.0003315,4]
[311715334,1705349467125,-500.0,0.0003315,4]
[311715335,1705349467135,-1054.96,0.0003315,4]
[311715336,1705349467144,-500.0,0.0003315,4]
[311715337,1705349467154,-500.0,0.0003315,4]
[311715338,1705349467163,-500.0,0.0003315,4]
[311715339,1705349467172,-500.0,0.0003315,4]
[311715340,1705349467182,-521.98,0.0003315,4]
[311715341,1705349467191,-500.0,0.0003315,4]
[311715342,1705349467200,-500.0,0.0003315,4]
[311715343,1705349467209,-500.0,0.0003315,4]
[311715344,1705349467219,-1206.01,0.0003315,4]
[311715345,1705349467228,-1317.46,0.0003315,4]
[311715346,1705349467237,-517.77513676,0.0003315,4]
[311715347,1705349467247,-500.0,0.0003315,4]
[311715348,1705349467256,-500.0,0.0003315,4]
[311715349,1705349467267,-961.26,0.0003315,4]
[311715350,1705349467277,-961.31,0.0003315,4]
[311715351,1705349467287,-545.0,0.0003315,4]
[311715352,1705349467296,-680.15,0.0003315,4]
[311715353,1705349467305,-500.0,0.0003315,4]
[311715354,1705349467314,-500.0,0.0003315,4]
[311715355,1705349467323,-500.0,0.0003315,4]
[311715356,1705349467332,-500.0,0.0003315,4]
[311715357,1705349467341,-500.0,0.0003315,4]
[311715358,1705349467350,-500.0,0.0003315,4]
[311715359,1705349467359,-500.0,0.0003315,4]
[311715360,1705349467368,-500.0,0.0003315,4]
[311715361,1705349467391,-500.0,0.0003315,4]
[311715362,1705349467413,-500.0,0.0003315,4]
[311715363,1705349467422,-500.0,0.0003315,4]
[311715364,1705349467432,-841.34,0.0003315,4]
[311715365,1705349467441,-1589.01,0.0003315,4]
[311715366,1705349467452,-500.0,0.0003315,4]
[311715367,1705349467465,-601.12,0.0003315,4]
[311715368,1705349467484,-990.11,0.0003315,4]
[311715369,1705349467501,-1158.27,0.0003315,4]
[311715370,1705349467512,-500.0,0.0003315,4]
[311715371,1705349467522,-649.83,0.0003315,4]
[311715372,1705349467531,-500.0,0.0003315,4]
[311715373,1705349467541,-883.47,0.0003315,4]
[311715374,1705349467550,-653.17,0.0003315,4]
[311715375,1705349467559,-601.08,0.0003315,4]
[311715376,1705349467569,-1283.18,0.0003315,4]
[311715377,1705349467579,-926.79,0.0003315,4]
[311715378,1705349467588,-500.0,0.0003315,4]
[311715379,1705349467597,-284.54573938,0.0003315,4]
[311715380,1705349467606,-528.75983722,0.0003315,4]
[311715381,1705349467615,-500.0,0.0003315,4]
[311715382,1705349467624,-518.27,0.0003315,4]
[311715383,1705349467633,-500.0,0.0003315,4]
[311715384,1705349467643,-500.0,0.0003315,4]
[311715385,1705349467652,-500.0,0.0003315,4]
[311715386,1705349467661,-500.0,0.0003315,4]
[311715387,1705349467670,-500.0,0.0003315,4]
[311715388,1705349467680,-567.38,0.0003315,4]
[311715389,1705349467689,-819.24,0.0003315,4]
[311715390,1705349467698,-972.21,0.0003315,4]
[311715391,1705349467708,-564.24,0.0003315,4]
[311715392,1705349467718,-662.97,0.0003315,4]
[311715393,1705349467727,-500.0,0.0003315,4]
[311715394,1705349467736,-1285.78,0.0003315,4]
[311715395,1705349467746,-964.27,0.0003315,4]
[311715396,1705349467756,-500.0,0.0003315,4]
[311715397,1705349467767,-500.0,0.0003315,4]
[311715398,1705349467776,-500.0,0.0003315,4]
[311715399,1705349467785,-746.32,0.0003315,4]
[311715400,1705349467794,-500.0,0.0003315,2]
[311715401,1705349467803,-500.0,0.0003315,4]
[311715402,1705349467812,-852.03,0.0003315,4]
[311715403,1705349467822,-680.73,0.0003315,4]
[311715404,1705349467831,-989.68,0.0003315,4]
[311715405,1705349467840,-500.0,0.0003315,4]
[311715406,1705349467849,-500.0,0.0003315,4]
[311715407,1705349467859,-874.17,0.0003315,4]
[311715408,1705349467869,-1141.01,0.0003315,4]
[311715409,1705349467878,-1795.53,0.0003315,4]
[311715410,1705349467887,-500.0,0.0003315,4]
[311715411,1705349467897,-500.0,0.0003315,4]
[311715412,1705349467907,-500.0,0.0003315,4]
[311715413,1705349467916,-500.0,0.0003315,4]
[311715414,1705349467925,-322.29,0.0003315,4]
[311715415,1705349467935,-655.43,0.0003315,4]
[311715416,1705349467944,-500.0,0.0003315,4]
[311715417,1705349467954,-500.0,0.0003315,4]
[311715418,1705349467966,-500.0,0.0003315,4]
[311715419,1705349467974,-1294.77,0.0003315,4]
[311715420,1705349467983,-500.0,0.0003315,4]
[311715421,1705349467992,-865.74,0.0003315,4]
[311715422,1705349468001,-682.96,0.0003315,4]
[311715423,1705349468010,-500.0,0.0003315,4]
[311715424,1705349468020,-500.0,0.0003315,4]
[311715425,1705349468029,-500.0,0.0003315,4]
[311715426,1705349468039,-601.05,0.0003315,4]
[311715427,1705349468049,-500.0,0.0003315,4]
[311715428,1705349468059,-504.2,0.0003315,4]
[311715429,1705349468070,-806.42,0.0003315,4]
[311715430,1705349468078,-500.0,0.0003315,4]
[311715431,1705349468087,-979.9,0.0003315,4]
[311715432,1705349468096,-500.0,0.0003315,4]
[311715433,1705349468106,-774.6,0.0003315,4]
[311715434,1705349468115,-500.0,0.0003315,4]
[311715435,1705349468124,-785.92,0.0003315,4]
[311715436,1705349468134,-500.0,0.0003315,4]
[311715437,1705349468143,-500.0,0.0003315,4]
[311715438,1705349468152,-959.56,0.0003315,4]
[311715439,1705349468161,-1090.65,0.0003315,4]
[311715440,1705349468170,-863.64,0.0003315,4]
[311715441,1705349468178,-967.11,0.0003315,4]
[311715442,1705349468187,-1058.75,0.0003315,4]
[311715443,1705349468196,-500.0,0.0003315,4]
[311715444,1705349468205,-500.0,0.0003315,4]
[311715445,1705349468214,-516.01,0.0003315,4]
[311715446,1705349468224,-764.22,0.0003315,4]
[311715447,1705349468233,-634.1,0.0003315,4]
[311715448,1705349468241,-1134.11,0.0003315,4]
[311715449,1705349468251,-500.0,0.0003315,4]
[311715450,1705349468263,-500.0,0.0003315,4]
[311715451,1705349468273,-888.47,0.0003315,4]
[311715452,1705349468281,-500.0,0.0003315,4]
[311715453,1705349468290,-500.0,0.0003315,4]
[311715454,1705349468299,-195.1148253,0.0003315,4]
[311715455,1705349468308,-500.0,0.0003315,4]
[311715456,1705349468317,-500.0,0.0003315,4]
[311715457,1705349468326,-1038.03,0.0003315,4]
[311715458,1705349468337,-500.0,0.0003315,4]
[311715459,1705349468347,-520.63579521,0.0003315,4]
[311715460,1705349468357,-500.0,0.0003315,4]
[311715461,1705349468366,-805.34,0.0003315,4]
[311715462,1705349468375,-839.59,0.0003315,4]
[311715463,1705349468384,-500.0,0.0003315,4]
[311715464,1705349468393,-500.0,0.0003315,4]
[311715465,1705349468402,-1434.72,0.0003315,4]
[311715466,1705349468411,-500.0,0.0003315,4]
[311715467,1705349468419,-773.03,0.0003315,4]
[311715468,1705349468428,-1188.47,0.0003315,4]
[311715469,1705349468437,-649.88,0.0003315,4]
[311715470,1705349468446,-500.0,0.0003315,4]
[311715471,1705349468455,-500.0,0.0003315,4]
[311715472,1705349468464,-500.0,0.0003315,4]
[311715473,1705349468472,-500.0,0.0003315,4]
[311715474,1705349468481,-500.0,0.0003315,4]
[311715475,1705349468490,-1091.2,0.0003315,4]
[311715476,1705349468500,-500.0,0.0003315,4]
[311715477,1705349468509,-500.0,0.0003315,4]
[311715478,1705349468520,-500.0,0.0003315,4]
[311715479,1705349468529,-500.0,0.0003315,4]
[311715480,1705349468539,-500.0,0.0003315,4]
[311715481,1705349468548,-500.0,0.0003315,4]
[311715482,1705349468557,-173.66733635,0.0003315,4]
[311715483,1705349468568,-665.04,0.0003315,4]
[311715484,1705349468578,-500.0,0.0003315,4]
[311715485,1705349468587,-193.38681051,0.0003315,4]
[311715486,1705349468597,-764.36,0.0003315,4]
[311715487,1705349468606,-500.0,0.0003315,4]
[311715488,1705349468616,-500.0,0.0003315,4]
[311715489,1705349468625,-864.2,0.0003315,4]
[311715490,1705349468634,-500.0,0.0003315,4]
[311715491,1705349468643,-787.87,0.0003315,4]
[311715492,1705349468653,-778.98,0.0003315,4]
[311715493,1705349468662,-500.0,0.0003315,4]
[311715494,1705349468672,-969.55,0.0003315,4]
[311715495,1705349468681,-512.78,0.0003315,4]
[311715496,1705349468690,-500.0,0.0003315,4]
[311715497,1705349468700,-755.89,0.0003315,4]
[311715498,1705349468709,-500.0,0.0003315,4]
[311715499,1705349468719,-602.83,0.0003315,4]
[311715500,1705349468728,-500.0,0.0003315,4]
[311715501,1705349468737,-500.0,0.0003315,4]
[311715502,1705349468746,-816.5,0.0003315,4]
[311715503,1705349468755,-727.91,0.0003315,4]
[311715504,1705349468766,-503.49,0.0003315,4]
[311715505,1705349468775,-500.0,0.0003315,4]
[311715506,1705349468785,-943.6,0.0003315,4]
[311715507,1705349468794,-813.14,0.0003315,4]
[311715508,1705349468803,-500.0,0.0003315,4]
[311715509,1705349468812,-500.0,0.0003315,4]
[311715510,1705349468821,-500.0,0.0003315,4]
[311715511,1705349468830,-500.0,0.0003315,4]
[311715512,1705349468840,-500.0,0.0003315,4]
[311715513,1705349468849,-500.0,0.0003315,4]
[311715514,1705349468858,-663.72,0.0003315,4]
[311715515,1705349468867,-566.79,0.0003315,4]
[311715516,1705349468876,-500.0,0.0003315,4]
[311715517,1705349468885,-695.87,0.0003315,4]
[311715518,1705349468894,-592.68,0.0003315,4]
[311715519,1705349468904,-636.45,0.0003315,4]
[311715520,1705349468913,-500.0,0.0003315,4]
[311715521,1705349468923,-1335.12,0.0003315,4]
[311715522,1705349468933,-1029.26,0.0003315,4]
[311715523,1705349468942,-500.0,0.0003315,4]
[311715524,1705349468952,-500.0,0.0003315,4]
[311715525,1705349468960,-500.0,0.0003315,4]
[311715526,1705349468970,-564.64,0.0003315,4]
[311715527,1705349468979,-500.0,0.0003315,4]
[311715528,1705349468988,-500.0,0.0003315,4]
[311715529,1705349468997,-1080.72,0.0003315,4]
[311715530,1705349469007,-500.0,0.0003315,4]
[311715531,1705349469017,-500.0,0.0003315,4]
[311715532,1705349469025,-678.1,0.0003315,4]
[311715533,1705349469034,-500.0,0.0003315,4]
[311715534,1705349469043,-500.0,0.0003315,4]
[311715535,1705349469053,-919.46,0.0003315,4]
[311715536,1705349469062,-500.0,0.0003315,4]
[311715537,1705349469071,-894.65,0.0003315,4]
[311715538,1705349469080,-500.0,0.0003315,4]
[311715539,1705349469089,-213.77090963,0.0003315,4]
[311715540,1705349469098,-500.0,0.0003315,4]
[311715541,1705349469107,-500.0,0.0003315,4]
[311715542,1705349469116,-500.0,0.0003315,4]
[311715543,1705349469126,-500.0,0.0003315,4]
[311715544,1705349469135,-500.0,0.0003315,4]
[311715545,1705349469144,-500.0,0.0003315,4]
[311715546,1705349469153,-584.67,0.0003315,4]
[311715547,1705349469164,-500.0,0.0003315,4]
[311715548,1705349469173,-1000.0,0.0003315,7]
[311715549,1705349469182,-500.0,0.0003315,4]
[311715550,1705349469191,-500.0,0.0003315,4]
[311715551,1705349469200,-709.4,0.0003315,4]
[311715552,1705349469210,-1547.81,0.0003315,2]
[311715553,1705349469219,-645.46714405,0.0003315,4]
[311715554,1705349469232,-508.72,0.0003315,4]
[311715555,1705349469241,-316.73639751,0.0003315,4]
[311715556,1705349469251,-1909.69,0.0003315,4]
[311715557,1705349469261,-500.0,0.0003315,4]
[311715558,1705349469271,-500.0,0.0003315,4]
[311715559,1705349469282,-500.0,0.0003315,4]
[311715560,1705349469291,-505.08127161,0.0003315,4]
[311715561,1705349469301,-500.0,0.0003315,4]
[311715562,1705349469310,-239.11458978,0.0003315,4]
[311715563,1705349469320,-500.0,0.0003315,4]
[311715564,1705349469329,-744.91,0.0003315,4]
[311715565,1705349469338,-586.82,0.0003315,4]
[311715566,1705349469348,-500.0,0.0003315,4]
[311715567,1705349469357,-589.97,0.0003315,4]
[311715568,1705349469367,-558.04,0.0003315,2]
[311715569,1705349469377,-1007.11,0.0003315,4]
[311715570,1705349469386,-1008.18,0.0003315,4]
[311715571,1705349469396,-340.85532126,0.0003315,4]
[311715572,1705349469405,-500.0,0.0003315,4]
[311715573,1705349469415,-1000.0,0.0003315,4]
[311715574,1705349469425,-950.78,0.0003315,4]
[311715575,1705349469435,-655.8,0.0003315,4]
[311715576,1705349469444,-235.72152866,0.0003315,4]
[311715577,1705349469453,-500.0,0.0003315,4]
[311715578,1705349469463,-500.0,0.0003315,4]
[311715579,1705349469472,-1211.91,0.0003315,4]
[311715580,1705349469482,-500.0,0.0003315,4]
[311715581,1705349469491,-835.57,0.0003315,4]
[311715582,1705349469501,-500.0,0.0003315,4]
[311715583,1705349469511,-500.0,0.0003315,4]
[311715584,1705349469522,-559.78,0.0003315,4]
[311715585,1705349469531,-500.0,0.0003315,4]
[311715586,1705349469541,-500.0,0.0003315,4]
[311715587,1705349469550,-500.0,0.0003315,4]
[311715588,1705349469559,-500.0,0.0003315,4]
[311715589,1705349469570,-1236.79,0.0003315,4]
[311715590,1705349469580,-500.0,0.0003315,4]
[311715591,1705349469591,-766.74,0.0003315,4]
[311715592,1705349469601,-758.43,0.0003315,4]
[311715593,1705349469612,-500.0,0.0003315,4]
[311715594,1705349469623,-536.48,0.0003315,4]
[311715595,1705349469633,-1610.7,0.0003315,4]
[311715596,1705349469644,-834.23,0.0003315,4]
[311715597,1705349469653,-500.0,0.0003315,4]
[311715598,1705349469663,-500.0,0.0003315,4]
[311715599,1705349469673,-350.84015729,0.0003315,30]
[311715600,1705349469683,-600.17,0.0003315,4]
[311715601,1705349469693,-962.5,0.0003315,4]
[311715602,1705349469704,-569.48501851,0.0003315,4]
[311715603,1705349469714,-677.97,0.0003315,4]
[311715604,1705349469723,-576.78,0.0003315,4]
[311715605,1705349469733,-838.43,0.0003315,4]
[311715606,1705349469743,-500.0,0.0003315,4]
[311715607,1705349469752,-879.96,0.0003315,4]
[311715608,1705349469762,-500.0,0.0003315,4]
[311715609,1705349469772,-1033.22,0.0003315,4]
[311715610,1705349469783,-728.75,0.0003315,4]
[311715611,1705349469793,-855.44,0.0003315,4]
[311715612,1705349469803,-500.0,0.0003315,4]
[311715613,1705349469813,-500.0,0.0003315,4]
[311715614,1705349469823,-630.91,0.0003315,4]
[311715615,1705349469833,-538.05,0.0003315,4]
[311715616,1705349469843,-500.0,0.0003315,4]
[311715617,1705349469853,-500.0,0.0003315,4]
[311715618,1705349469862,-500.0,0.0003315,4]
[311715619,1705349469872,-500.0,0.0003315,4]
[311715620,1705349469881,-500.0,0.0003315,4]
[311715621,1705349469891,-500.0,0.0003315,4]
[311715622,1705349469900,-500.0,0.0003315,4]
[311715623,1705349469910,-500.0,0.0003315,4]
[311715624,1705349469919,-500.0,0.0003315,4]
[311715625,1705349469930,-500.0,0.0003315,4]
[311715626,1705349469940,-743.48,0.0003315,4]
[311715627,1705349469950,-500.0,0.0003315,4]
[311715628,1705349469961,-500.0,0.0003315,4]
[311715629,1705349469973,-500.0,0.0003315,4]
[311715630,1705349469983,-500.0,0.0003315,4]
[311715631,1705349469993,-500.0,0.0003315,4]
[311715632,1705349470004,-1391.14,0.0003315,4]
[311715633,1705349470015,-548.88,0.0003315,4]
[311715634,1705349470026,-1863.92,0.0003315,4]
[311715635,1705349470035,-678.36,0.0003315,4]
[311715636,1705349470047,-954.36,0.0003315,4]
[311715637,1705349470057,-864.14,0.0003315,4]
[311715638,1705349470067,-993.36,0.0003315,4]
[311715639,1705349470077,-513.42,0.0003315,4]
[311715640,1705349470088,-612.15165587,0.0003315,4]
[311715641,1705349470098,-500.0,0.0003315,4]
[311715642,1705349470108,-1285.41,0.0003315,4]
[311715643,1705349470118,-500.0,0.0003315,4]
[311715644,1705349470128,-500.0,0.0003315,4]
[311715645,1705349470139,-1840.83,0.0003315,4]
[311715646,1705349470149,-500.0,0.0003315,4]
[311715647,1705349470160,-1694.35,0.0003315,4]
[311715648,1705349470170,-500.0,0.0003315,4]
[311715649,1705349470180,-500.0,0.0003315,4]
[311715650,1705349470191,-665.24,0.0003315,4]
[311715651,1705349470205,-500.0,0.0003315,4]
[311715652,1705349470216,-967.39,0.0003315,4]
[311715653,1705349470226,-535.91,0.0003315,4]
[311715654,1705349470236,-500.0,0.0003315,4]
[311715655,1705349470246,-603.18,0.0003315,4]
[311715656,1705349470256,-1411.23,0.0003315,4]
[311715657,1705349470267,-715.39,0.0003315,4]
[311715658,1705349470277,-775.95,0.0003315,4]
[311715659,1705349470287,-1014.69,0.0003315,4]
[311715660,1705349470297,-500.0,0.0003315,4]
[311715661,1705349470307,-500.0,0.0003315,4]
[311715662,1705349470318,-944.35,0.0003315,4]
[311715663,1705349470328,-859.81,0.0003315,4]
[311715664,1705349470338,-522.03,0.0003315,4]
[311715665,1705349470348,-500.0,0.0003315,4]
[311715666,1705349470358,-558.27,0.0003315,4]
[311715667,1705349470369,-516.82263931,0.0003315,4]
[311715668,1705349470379,-500.0,0.0003315,4]
[311715669,1705349470389,-500.0,0.0003315,4]
[311715670,1705349470399,-1193.03,0.0003315,4]
[311715671,1705349470409,-500.0,0.0003315,4]
[311715672,1705349470419,-500.0,0.0003315,4]
[311715673,1705349470430,-500.0,0.0003315,4]
[311715674,1705349470440,-500.0,0.0003315,4]
[311715675,1705349470450,-537.04484301,0.0003315,4]
[311715676,1705349470461,-508.34197619,0.0003315,4]
[311715677,1705349470470,-500.0,0.0003315,4]
[311715678,1705349470481,-1639.14,0.0003315,4]
[311715679,1705349470492,-777.62,0.0003315,4]
[311715680,1705349470502,-800.68,0.0003315,4]
[311715681,1705349470513,-500.0,0.0003315,4]
[311715682,1705349470523,-500.0,0.0003315,4]
[311715683,1705349470532,-500.0,0.0003315,4]
[311715685,1705349470542,-500.0,0.0003315,4]
[311715686,1705349470552,-500.0,0.0003315,4]
[311715687,1705349470562,-500.0,0.0003315,4]
[311715689,1705349470571,-1584.29,0.0003315,4]
[311715690,1705349470581,-634.64,0.0003315,4]
[311715691,1705349470591,-500.0,0.0003315,4]
[311715692,1705349470601,-500.0,0.0003315,4]
[311715693,1705349470611,-500.0,0.0003315,4]
[311715694,1705349470621,-1834.51,0.0003315,4]
[311715695,1705349470631,-928.1,0.0003315,4]
[311715696,1705349470640,-731.65,0.0003315,4]
[311715697,1705349470650,-500.0,0.0003315,4]
[311715699,1705349470660,-899.71,0.0003315,4]
[311715700,1705349470670,-1147.3,0.0003315,4]
[311715701,1705349470680,-500.0,0.0003315,4]
[311715702,1705349470690,-500.0,0.0003315,4]
[311715703,1705349470701,-636.72,0.0003315,4]
[311715704,1705349470710,-500.0,0.0003315,4]
[311715705,1705349470720,-500.0,0.0003315,4]
[311715706,1705349470730,-500.0,0.0003315,4]
[311715707,1705349470740,-500.0,0.0003315,4]
[311715708,1705349470750,-500.0,0.0003315,4]
[311715709,1705349470760,-1209.48,0.0003315,4]
[311715710,1705349470772,-500.0,0.0003315,7]
[311715711,1705349470782,-500.0,0.0003315,4]
[311715712,1705349470792,-500.0,0.0003315,4]
[311715713,1705349470802,-500.0,0.0003315,4]
[311715714,1705349470812,-500.0,0.0003315,4]
[311715715,1705349470821,-565.53,0.0003315,4]
[311715716,1705349470831,-638.49,0.0003315,4]
[311715717,1705349470841,-1439.96,0.0003315,4]
[311715718,1705349470850,-500.0,0.0003315,4]
[311715719,1705349470860,-590.6,0.0003315,4]
[311715720,1705349470870,-585.02,0.0003315,4]
[311715722,1705349470880,-354.67140022,0.0003315,4]
[311715723,1705349470889,-500.0,0.0003315,4]
[311715724,1705349470899,-500.0,0.0003315,4]
[311715726,1705349470908,-500.0,0.0003315,4]
[311715727,1705349470918,-500.0,0.0003315,4]
[311715728,1705349470927,-1542.45,0.0003315,4]
[311715730,1705349470937,-500.0,0.0003315,4]
[311715731,1705349470946,-500.0,0.0003315,4]
[311715732,1705349470955,-500.0,0.0003315,4]
[311715733,1705349470965,-500.0,0.0003315,4]
[311715734,1705349470974,-500.0,0.0003315,4]
[311715735,1705349470983,-500.0,0.0003315,4]
[311715736,1705349470993,-500.0,0.0003315,4]
[311715737,1705349471002,-582.22,0.0003315,4]
[311715738,1705349471012,-829.64,0.0003315,4]
[311715739,1705349471021,-500.0,0.0003315,4]
[311715740,1705349471031,-500.0,0.0003315,4]
[311715741,1705349471041,-500.0,0.0003315,4]
[311715742,1705349471050,-500.0,0.0003315,4]
[311715743,1705349471059,-996.88,0.0003315,4]
[311715744,1705349471069,-500.0,0.0003315,4]
[311715745,1705349471078,-632.03,0.0003315,4]
[311715746,1705349471087,-902.37,0.0003315,4]
[311715747,1705349471097,-500.0,0.0003315,4]
[311715748,1705349471107,-500.0,0.0003315,4]
[311715749,1705349471116,-500.0,0.0003315,4]
[311715750,1705349471126,-1769.06,0.0003315,4]
[311715751,1705349471136,-500.0,0.0003315,4]
[311715752,1705349471146,-500.0,0.0003315,4]
[311715753,1705349471156,-710.43,0.0003315,4]
[311715754,1705349471166,-500.0,0.0003315,4]
[311715755,1705349471175,-894.75,0.0003315,4]
[311715756,1705349471185,-979.8,0.0003315,4]
[311715757,1705349471194,-500.0,0.0003315,4]
[311715758,1705349471204,-1024.95,0.0003315,4]
[311715759,1705349471214,-648.23,0.0003315,4]
[311715760,1705349471224,-500.0,0.0003315,4]
[311715761,1705349471233,-520.2,0.0003315,4]
[311715762,1705349471243,-500.0,0.0003315,4]
[311715763,1705349471253,-500.0,0.0003315,4]
[311715764,1705349471262,-1120.91,0.0003315,4]
[311715765,1705349471272,-500.0,0.0003315,4]
[311715766,1705349471282,-500.0,0.0003315,4]
[311715767,1705349471291,-1958.3,0.0003315,4]
[311715768,1705349471301,-500.0,0.0003315,4]
[311715769,1705349471311,-655.01,0.0003315,4]
[311715771,1705349471320,-1194.0,0.0003315,4]
[311715772,1705349471330,-500.0,0.0003315,4]
[311715773,1705349471340,-287.05665966,0.0003315,4]
[311715774,1705349471349,-500.0,0.0003315,4]
[311715776,1705349471639,-500.0,0.0003315,4]
[311715777,1705349471662,-1612.4,0.0003315,4]
[311715778,1705349471672,-500.0,0.0003315,4]
[311715779,1705349471681,-500.0,0.0003315,4]
[311715780,1705349471691,-775.8,0.0003315,4]
[311715781,1705349471701,-504.34670883,0.0003315,4]
[311715782,1705349471710,-500.0,0.0003315,4]
[311715783,1705349471719,-500.0,0.0003315,4]
[311715784,1705349471729,-531.2,0.0003315,4]
[311715785,1705349471738,-696.69,0.0003315,4]
[311715786,1705349471748,-878.98,0.0003315,4]
[311715787,1705349471757,-500.0,0.0003315,4]
[311715788,1705349471768,-882.91,0.0003315,4]
[311715789,1705349471778,-2149.41,0.0003315,4]
[311715790,1705349471787,-500.0,0.0003315,4]
[311715791,1705349471796,-897.17,0.0003315,4]
[311715792,1705349471806,-3339.01,0.0003315,4]
[311715793,1705349471815,-1930.54,0.0003315,4]
[311715794,1705349471824,-1485.36,0.0003315,4]
[311715795,1705349471833,-614.0684578,0.0003315,4]
[311715796,1705349471843,-505.63895377,0.0003315,4]
[311715797,1705349471853,-1098.76,0.0003315,4]
[311715798,1705349471862,-500.0,0.0003315,4]
[311715799,1705349471871,-500.0,0.0003315,4]
[311715800,1705349471880,-500.0,0.0003315,4]
[311715801,1705349471889,-500.0,0.0003315,4]
[311715802,1705349471898,-500.0,0.0003315,4]
[311715803,1705349471908,-500.0,0.0003315,4]
[311715804,1705349471917,-836.43,0.0003315,4]
[311715805,1705349471926,-984.84,0.0003315,4]
[311715806,1705349471935,-500.0,0.0003315,4]
[311715807,1705349471944,-500.0,0.0003315,4]
[311715808,1705349471954,-1411.24,0.0003315,4]
[311715809,1705349471963,-622.36,0.0003315,4]
[311715810,1705349471974,-1153.72,0.0003315,4]
[311715811,1705349471983,-500.0,0.0003315,4]
[311715812,1705349471992,-500.0,0.0003315,4]
[311715813,1705349472002,-500.0,0.0003315,4]
[311715814,1705349472012,-500.0,0.0003315,4]
[311715815,1705349472023,-1104.28,0.0003315,4]
[311715816,1705349472032,-513.01708582,0.0003315,4]
[311715817,1705349472042,-500.0,0.0003315,4]
[311715818,1705349472052,-941.86,0.0003315,4]
[311715819,1705349472062,-595.55,0.0003315,4]
[311715820,1705349472071,-673.34,0.0003315,4]
[311715821,1705349472080,-500.0,0.0003315,4]
[311715822,1705349472089,-500.0,0.0003315,4]
[311715823,1705349472099,-500.0,0.0003315,4]
[311715824,1705349472109,-500.0,0.0003315,4]
[311715825,1705349472118,-510.76,0.0003315,4]
[311715826,1705349472127,-697.48,0.0003315,4]
[311715827,1705349472136,-589.17,0.0003315,4]
[311715828,1705349472147,-500.0,0.0003315,4]
[311715829,1705349472157,-500.0,0.0003315,4]
[311715830,1705349472166,-1628.69,0.0003315,4]